bitfinex-derivatives/quotes_BTCF0:USTF0_20250114
["timestamp","ask_amount","ask_price","bid_price","bid_amount"]
[1736848951633,0.051495,97110.0,97109.0,0.3608]
[1736848952234,0.051495,97110.0,97109.0,0.412296]
[1736848952533,0.051495,97110.0,97105.0,0.18011963]
[1736848952534,0.051497,97106.0,97105.0,0.18011963]
[1736848952838,0.051497,97106.0,97105.0,0.24015951]
[1736848953833,0.051497,97106.0,97105.0,0.24115951]
[1736848954038,0.051497,97106.0,97105.0,0.052498]
[1736848954233,0.051497,97106.0,97105.0,0.051498]
[1736848954435,0.051497,97106.0,97105.0,0.052498]
[1736848954637,0.051497,97106.0,97105.0,0.001]
[1736848954929,0.051498,97104.0,97103.0,0.051498]
[1736848955532,0.051499,97103.0,97102.0,0.24015951]
[1736848956028,0.051499,97102.0,97101.0,0.1802492]
[1736848956230,0.259499,97102.0,97101.0,0.1802492]
[1736848957121,0.259499,97102.0,97101.0,0.1822492]
[1736848957526,0.259499,97102.0,97101.0,0.002]
[1736848957730,0.3608,97130.0,97101.0,0.3608]
[1736848957731,0.3608,97121.0,97101.0,0.3608]
[1736848957940,0.3608,97121.0,97111.0,0.10188985]
[1736848958125,0.3608,97130.0,97118.0,0.3701]
[1736848958323,0.05148,97140.0,97133.0,0.051483]
[1736848958525,0.05148,97139.0,97133.0,0.412283]
[1736848958723,0.05148,97139.0,97138.0,0.05148]
[1736848959328,0.051482,97135.0,97134.0,0.051482]
[1736848960030,0.051482,97134.0,97133.0,0.5410492]
[1736848960332,0.051482,97134.0,97133.0,0.1802492]
[1736848960734,0.051486,97128.0,97127.0,0.24015951]
[1736848961131,0.37929709,97135.0,97112.0,0.24015951]
[1736848961132,0.051493,97114.0,97112.0,0.24015951]
[1736848962230,0.051493,97114.0,97106.0,0.3618]
[1736848962437,0.051493,97114.0,97106.0,0.3608]
[1736848962634,0.051494,97112.0,97094.0,0.24015951]
[1736848962840,0.051502,97098.0,97094.0,0.29166351]
[1736848963030,0.051503,97096.0,97094.0,0.29166351]
[1736848963232,0.051503,97096.0,97094.0,0.051504]
[1736848963933,0.051496,97109.0,97094.0,0.003]
[1736848964138,0.051503,97096.0,97094.0,0.004]
[1736848964338,0.051503,97096.0,97094.0,0.001]
[1736848964540,0.051503,97096.0,97094.0,0.004]
[1736848965041,0.051503,97095.0,97094.0,0.004]
[1736848966038,0.051476,97147.0,97099.0,0.051501]
[1736848966242,0.051481,97136.0,97135.0,0.3608]
[1736848966742,0.2158,97141.0,97135.0,0.3608]
[1736848967042,0.051481,97136.0,97135.0,0.3608]
[1736848967452,0.056481,97136.0,97135.0,0.3608]
[1736848968242,0.056481,97136.0,97135.0,0.001]
[1736848969334,0.051481,97136.0,97135.0,0.002]
[1736848969734,0.051481,97136.0,97135.0,0.001]
[1736848969935,0.060481,97136.0,97123.0,0.3608]
[1736848970134,0.3708,97136.0,97123.0,0.3608]
[1736848970339,0.051485,97129.0,97123.0,0.3608]
[1736848970539,0.3648,97136.0,97123.0,0.3608]
[1736848970841,0.051488,97124.0,97123.0,0.3608]
[1736848971242,0.051488,97124.0,97123.0,0.3628]
[1736848971741,0.051488,97124.0,97123.0,0.3618]
[1736848972747,0.0692255,97124.0,97123.0,0.001]
[1736848973441,0.051498,97105.0,97101.0,0.3608]
[1736848973748,0.051498,97104.0,97101.0,0.3608]
[1736848974152,0.15273548,97120.0,97101.0,0.3608]
[1736848974442,0.051499,97102.0,97101.0,0.3608]
[1736848974648,0.051499,97102.0,97101.0,0.003]
[1736848974837,0.051499,97102.0,97101.0,0.3638]
[1736848975043,0.051499,97102.0,97101.0,0.3648]
[1736848976348,0.051499,97102.0,97093.0,0.3608]
[1736848976559,0.001,97102.0,97083.0,0.3623447]
[1736848977050,0.051509,97084.0,97083.0,0.3623447]
[1736848978349,0.051509,97084.0,97083.0,0.0085447]
[1736848978745,0.3608,97089.0,97072.0,0.3608]
[1736848978951,0.051515,97073.0,97072.0,0.3608]
[1736848979145,0.05152,97063.0,97062.0,0.3608]
[1736848980246,0.21914563,97083.0,97062.0,0.3608]
[1736848980448,0.001,97063.0,97062.0,0.3698]
[1736848980646,0.05305563,97083.0,97067.0,0.051518]
[1736848980837,0.07141986,97083.0,97081.0,0.3608]
[1736848981041,0.00052001,97095.0,97082.0,0.3701]
[1736848981241,0.3608,97114.0,97094.0,0.3608]
[1736848981242,0.0515,97101.0,97094.0,0.3608]
[1736848981452,0.01817191,97103.0,97095.0,0.5722]
[1736848981748,0.051496,97110.0,97095.0,0.5732]
[1736848981945,0.275285,97129.0,97095.0,0.5732]
[1736848981946,0.07004591,97115.0,97106.0,0.3608]
[1736848982142,0.07004591,97115.0,97114.0,0.3608]
[1736848982548,0.051493,97115.0,97114.0,0.3608]
[1736848983046,0.412293,97115.0,97106.0,0.3608]
[1736848983248,0.051503,97096.0,97085.0,0.3608]
[1736848983445,0.051507,97087.0,97085.0,0.3608]
[1736848984255,0.051507,97087.0,97086.0,0.21914491]
[1736848984552,0.051507,97087.0,97086.0,0.00254491]
[1736848984946,0.06984583,97087.0,97086.0,0.00254491]
[1736848986455,0.051515,97072.0,97071.0,0.3608]
[1736848987755,0.051515,97072.0,97071.0,0.3618]
[1736848988151,0.01833883,97087.0,97071.0,0.4358]
[1736848988353,0.3608,97126.0,97086.0,0.3608]
[1736848988655,0.051502,97098.0,97094.0,0.3608]
[1736848988861,0.051489,97122.0,97095.0,0.224]
[1736848989055,0.051488,97124.0,97119.0,0.3608]
[1736848989358,0.01813662,97125.0,97109.0,0.3608]
[1736848989752,0.051488,97124.0,97109.0,0.3608]
[1736848989950,0.01813662,97125.0,97109.0,0.3608]
[1736848990155,0.051495,97111.0,97109.0,0.3608]
[1736848990357,0.05149,97120.0,97119.0,0.001]
[1736848991358,0.05749,97120.0,97119.0,0.001]
[1736848991561,0.006,97120.0,97119.0,0.001]
[1736848991765,0.05749,97120.0,97119.0,0.001]
[1736848992261,0.05749,97120.0,97119.0,0.3618]
[1736848992956,0.05749,97120.0,97119.0,0.3608]
[1736848993462,0.06649,97120.0,97119.0,0.3618]
[1736848993764,0.06649,97120.0,97119.0,0.001]
[1736848997458,0.015,97120.0,97119.0,0.05249]
[1736848997654,0.00154453,97144.0,97119.0,0.302]
[1736848997860,0.00154453,97144.0,97135.0,0.3608]
[1736848998161,0.00154453,97144.0,97143.0,0.3608]
[1736848998358,0.00154453,97144.0,97143.0,0.412278]
[1736848998965,0.051467,97164.0,97143.0,0.413278]
[1736848999171,0.051467,97164.0,97163.0,0.3608]
[1736849000566,0.07580931,97164.0,97163.0,0.3618]
[1736849000759,0.07580931,97164.0,97151.0,0.3608]
[1736849000760,0.051473,97152.0,97151.0,0.3608]
[1736849001369,0.05147,97158.0,97151.0,0.3608]
[1736849001561,0.05147,97158.0,97152.0,0.2066]
[1736849001963,0.05147,97158.0,97152.0,0.258073]
[1736849002368,0.02434231,97164.0,97152.0,0.2066]
[1736849002663,0.060467,97164.0,97160.0,0.3608]
[1736849002863,0.051468,97161.0,97160.0,0.3608]
[1736849003868,0.051468,97161.0,97160.0,0.3618]
[1736849004065,0.003,97161.0,97160.0,0.414269]
[1736849005269,0.051463,97171.0,97160.0,0.3618]
[1736849005464,0.051463,97171.0,97170.0,0.3608]
[1736849006067,0.3608,97196.0,97170.0,0.3608]
[1736849006271,0.39099032,97184.0,97182.0,0.412257]
[1736849006470,0.40656996,97184.0,97183.0,0.2116]
[1736849007262,0.1,97200.0,97194.0,0.051451]
[1736849007263,0.051449,97198.0,97194.0,0.051451]
[1736849007775,0.051449,97198.0,97197.0,0.051449]
[1736849008490,0.1,97200.0,97193.0,0.001]
[1736849008772,0.1,97200.0,97194.0,0.3608]
[1736849008976,0.051448,97199.0,97194.0,0.3608]
[1736849009176,0.051449,97197.0,97194.0,0.3608]
[1736849009477,0.003,97198.0,97197.0,0.001]
[1736849009977,0.054449,97198.0,97194.0,0.36074547]
[1736849010166,0.051449,97198.0,97194.0,0.36174547]
[1736849010778,0.051449,97197.0,97194.0,0.36174547]
[1736849010981,0.05145,97195.0,97194.0,0.36174547]
[1736849011375,0.004,97199.0,97194.0,0.36274547]
[1736849011678,0.051445,97206.0,97199.0,0.051448]
[1736849011870,0.05144,97214.0,97205.0,0.3608]
[1736849012067,0.0015434,97221.0,97213.0,0.3608]
[1736849012275,0.051438,97218.0,97214.0,0.07]
[1736849012472,0.051439,97216.0,97214.0,0.071]
[1736849013073,0.054439,97216.0,97214.0,0.05244]
[1736849013269,0.01525581,97231.0,97214.0,0.2169]
[1736849013472,0.051431,97231.0,97230.0,0.3608]
[1736849016074,0.051431,97231.0,97230.0,0.3618]
[1736849016478,0.051431,97231.0,97230.0,0.3628]
[1736849017294,0.05143,97233.0,97231.0,0.051431]
[1736849018182,0.2224,97242.0,97230.0,0.3618]
[1736849018384,0.05143,97233.0,97230.0,0.51453548]
[1736849018579,0.051431,97232.0,97230.0,0.3618]
[1736849019378,0.051431,97232.0,97231.0,0.001]
[1736849020083,0.2224,97242.0,97231.0,0.002]
[1736849020277,0.051426,97241.0,97231.0,0.001]
[1736849020583,0.05143,97233.0,97231.0,0.001]
[1736849021082,0.05143,97233.0,97231.0,0.002]
[1736849021675,0.2224,97242.0,97231.0,0.002]
[1736849021873,0.051428,97237.0,97232.0,0.05143]
[1736849022084,0.051428,97237.0,97231.0,0.002]
[1736849022270,0.2224,97242.0,97231.0,0.002]
[1736849022477,0.05143,97233.0,97231.0,0.002]
[1736849022879,0.23805015,97242.0,97231.0,0.002]
[1736849022880,0.051426,97241.0,97231.0,0.002]
[1736849023080,0.23805015,97242.0,97230.0,0.3608]
[1736849023277,0.051431,97231.0,97230.0,0.3608]
[1736849025588,0.051431,97231.0,97230.0,0.3618]
[1736849025983,0.051431,97231.0,97230.0,0.3608]
[1736849026190,0.051431,97231.0,97230.0,0.3618]
[1736849026685,0.051436,97222.0,97221.0,0.3608]
[1736849026878,0.05144,97214.0,97213.0,0.3608]
[1736849027078,0.051436,97222.0,97213.0,0.3608]
[1736849027079,0.051437,97220.0,97217.0,0.051438]
[1736849027289,0.051438,97219.0,97217.0,0.051438]
[1736849027488,0.3608,97238.0,97217.0,0.051438]
[1736849027684,0.051438,97218.0,97217.0,0.051438]
[1736849027878,0.05143,97234.0,97213.0,0.3608]
[1736849028078,0.05144,97214.0,97213.0,0.3608]
[1736849028676,0.051438,97218.0,97215.0,0.051439]
[1736849028877,0.051437,97221.0,97213.0,0.3608]
[1736849029082,0.051437,97221.0,97217.0,0.051438]
[1736849029283,0.2111,97228.0,97213.0,0.3618]
[1736849029480,0.051433,97227.0,97218.0,0.15273548]
[1736849029687,0.051437,97219.0,97218.0,0.15273548]
[1736849030491,0.22647487,97228.0,97213.0,0.412241]
[1736849030492,0.22647487,97228.0,97213.0,0.3608]
[1736849030690,0.05144,97214.0,97213.0,0.3608]
[1736849033082,0.051434,97226.0,97223.0,0.051435]
[1736849033291,0.051434,97226.0,97225.0,0.3608]
[1736849033684,0.051427,97240.0,97228.0,0.051432]
[1736849033884,0.05143,97234.0,97233.0,0.3608]
[1736849034794,0.05143,97234.0,97233.0,0.41223]
[1736849035387,0.0153637,97240.0,97237.0,0.051428]
[1736849035690,0.0153637,97240.0,97233.0,0.3608]
[1736849035894,0.0153637,97240.0,97239.0,0.051427]
[1736849036588,0.051422,97248.0,97241.0,0.051426]
[1736849037182,0.001543,97254.0,97242.0,0.051425]
[1736849037388,0.001543,97254.0,97251.0,0.412221]
[1736849037594,0.001543,97254.0,97253.0,0.05142]
[1736849038696,0.01693424,97254.0,97253.0,0.05142]
[1736849039394,0.01693424,97254.0,97253.0,0.05242]
[1736849040594,0.051404,97282.0,97253.0,0.05242]
[1736849040595,0.412212,97268.0,97253.0,0.05242]
[1736849040898,0.412212,97268.0,97265.0,0.051413]
[1736849041302,0.051412,97268.0,97265.0,0.051413]
[1736849041495,0.051412,97267.0,97260.0,0.412215]
[1736849041799,0.051414,97264.0,97260.0,0.412215]
[1736849042096,0.051418,97256.0,97253.0,0.001]
[1736849042298,0.254218,97255.0,97254.0,0.29765974]
[1736849042501,0.472118,97255.0,97254.0,0.29765974]
[1736849043295,0.472118,97255.0,97249.0,0.29765974]
[1736849043501,0.412221,97250.0,97249.0,0.29765974]
[1736849043802,0.412221,97250.0,97242.0,0.34281375]
[1736849043997,0.6618,97250.0,97229.0,0.41788363]
[1736849044198,0.6618,97250.0,97229.0,0.41672363]
[1736849044199,0.051432,97230.0,97229.0,0.41672363]
[1736849044602,0.3608,97237.0,97220.0,0.51353548]
[1736849044905,0.051436,97222.0,97220.0,0.51353548]
[1736849045205,0.051436,97222.0,97220.0,0.3608]
[1736849045599,0.051436,97221.0,97220.0,0.3608]
[1736849048107,0.06655931,97221.0,97220.0,0.3608]
[1736849050503,0.051439,97216.0,97213.0,0.001543]
[1736849050714,0.05144,97214.0,97213.0,0.001543]
[1736849051910,0.05144,97214.0,97213.0,0.003543]
[1736849052812,0.051446,97202.0,97201.0,0.23946649]
[1736849054112,0.05145,97196.0,97191.0,0.3608]
[1736849054310,0.05145,97195.0,97191.0,0.3608]
[1736849054611,0.051452,97192.0,97191.0,0.3608]
[1736849055517,0.2098,97206.0,97191.0,0.3608]
[1736849056007,0.2098,97206.0,97191.0,0.3628]
[1736849056315,0.051449,97198.0,97191.0,0.3628]
[1736849056509,0.051449,97197.0,97191.0,0.3628]
[1736849057211,0.05143,97234.0,97195.0,0.05145]
[1736849057212,0.051446,97203.0,97195.0,0.05145]
[1736849057404,0.051441,97213.0,97201.0,0.3608]
[1736849057810,0.051446,97202.0,97201.0,0.3608]
[1736849059211,0.051446,97202.0,97181.0,0.23344532]
[1736849059212,0.3608,97203.0,97173.0,0.3608]
[1736849059517,0.051461,97175.0,97173.0,0.5787]
[1736849059817,0.10168154,97183.0,97173.0,0.5787]
[1736849060117,0.051461,97175.0,97173.0,0.5787]
[1736849060315,0.3608,97186.0,97173.0,0.5787]
[1736849060515,0.3608,97186.0,97176.0,0.10168154]
[1736849060909,0.051449,97197.0,97184.0,0.051455]
[1736849061203,0.3608,97209.0,97191.0,0.3608]
[1736849061410,0.3608,97209.0,97192.0,0.433]
[1736849061716,0.051451,97193.0,97192.0,0.433]
[1736849062108,0.3608,97193.0,97183.0,0.3608]
[1736849062309,0.051452,97192.0,97176.0,0.4163]
[1736849062618,0.051459,97178.0,97177.0,0.07]
[1736849062916,0.05146,97177.0,97176.0,0.4163]
[1736849063216,0.05146,97177.0,97176.0,0.4193]
[1736849064303,0.05146,97177.0,97176.0,0.003]
[1736849064519,0.06267301,97177.0,97176.0,0.003]
[1736849064717,0.051462,97172.0,97171.0,0.00154345]
[1736849065017,0.051462,97172.0,97151.0,0.2039]
[1736849065018,0.051467,97163.0,97151.0,0.2039]
[1736849065213,0.051467,97163.0,97152.0,0.051472]
[1736849065419,0.051467,97163.0,97154.0,0.051472]
[1736849065622,0.051467,97163.0,97156.0,0.051471]
[1736849065921,0.051467,97163.0,97158.0,0.3608]
[1736849066422,0.051467,97163.0,97162.0,0.02234831]
[1736849067615,0.051467,97163.0,97162.0,0.07381631]
[1736849069222,0.051467,97163.0,97162.0,0.07681631]
[1736849069622,0.051467,97163.0,97162.0,0.02234831]
[1736849069823,0.051467,97163.0,97162.0,0.02834831]
[1736849070019,0.051467,97163.0,97162.0,0.02934831]
[1736849070218,0.051467,97163.0,97162.0,0.08081631]
[1736849070717,0.051467,97163.0,97162.0,0.07881631]
[1736849070922,0.051467,97163.0,97162.0,0.07981631]
[1736849071718,0.051467,97163.0,97162.0,0.02234831]
[1736849071925,0.051467,97163.0,97162.0,0.02534831]
[1736849072723,0.051467,97163.0,97162.0,0.02634831]
[1736849073321,0.3608,97173.0,97162.0,0.02434831]
[1736849073515,0.051458,97183.0,97182.0,0.051456]
[1736849074326,0.051458,97183.0,97182.0,0.476856]
[1736849074521,0.051458,97183.0,97182.0,0.4254]
[1736849075224,0.06266229,97183.0,97182.0,0.205]
[1736849075925,0.06266229,97183.0,97182.0,0.002]
[1736849076126,0.06266229,97183.0,97182.0,0.005]
[1736849076620,0.051457,97182.0,97181.0,0.3608]
[1736849076828,0.051462,97172.0,97171.0,0.051463]
[1736849077218,0.051462,97172.0,97169.0,0.2204]
[1736849077219,0.051463,97170.0,97169.0,0.2204]
[1736849077429,0.051466,97165.0,97164.0,0.3608]
[1736849077720,0.051463,97172.0,97164.0,0.3608]
[1736849077927,0.05146,97176.0,97175.0,0.05146]
[1736849078831,0.051461,97174.0,97171.0,0.051463]
[1736849079623,0.051461,97174.0,97171.0,0.002]
[1736849079929,0.051461,97174.0,97173.0,0.051462]
[1736849080131,0.051459,97178.0,97174.0,0.051461]
[1736849080429,0.05146,97177.0,97174.0,0.051461]
[1736849080621,0.051461,97175.0,97174.0,0.051461]
[1736849080929,0.051462,97172.0,97171.0,0.005]
[1736849082124,0.051462,97172.0,97171.0,0.004]
[1736849082327,0.051467,97163.0,97158.0,0.05147]
[1736849082635,0.051467,97163.0,97159.0,0.051469]
[1736849083429,0.051467,97163.0,97157.0,0.2124]
[1736849083625,0.051467,97163.0,97162.0,0.02234831]
[1736849084726,0.051467,97163.0,97162.0,0.02534831]
[1736849087337,0.06269179,97163.0,97162.0,0.02534831]
[1736849090142,0.3608,97167.0,97162.0,0.02534831]
[1736849090432,0.3608,97167.0,97166.0,0.051466]
[1736849090637,0.412265,97167.0,97166.0,0.051466]
[1736849090832,0.412265,97167.0,97166.0,0.121466]
[1736849091033,0.3608,97167.0,97165.0,0.051466]
[1736849091237,0.3608,97167.0,97162.0,0.02534831]
[1736849091238,0.051467,97163.0,97162.0,0.02534831]
[1736849091428,0.051467,97163.0,97162.0,0.07681631]
[1736849092532,0.051467,97163.0,97162.0,0.08814395]
[1736849092837,0.051467,97163.0,97162.0,0.08514395]
[1736849093235,0.051464,97170.0,97164.0,0.051467]
[1736849093438,0.051464,97170.0,97169.0,0.051464]
[1736849093841,0.01147757,97174.0,97162.0,0.02534831]
[1736849094041,0.051464,97169.0,97168.0,0.2033]
[1736849095141,0.051467,97163.0,97162.0,0.02634831]
[1736849095534,0.051467,97163.0,97162.0,0.02234831]
[1736849095839,0.051467,97163.0,97162.0,0.02134831]
[1736849096235,0.051467,97163.0,97155.0,0.17975594]
[1736849096539,0.412271,97156.0,97155.0,0.17975594]
[1736849096737,0.051476,97147.0,97146.0,0.3608]
[1736849098745,0.051476,97147.0,97146.0,0.3648]
[1736849099043,0.051476,97147.0,97146.0,0.3738]
[1736849099935,0.051476,97147.0,97146.0,0.013]
[1736849102248,0.051476,97147.0,97146.0,0.01]
[1736849102544,0.051476,97147.0,97146.0,0.061476]
[1736849102942,0.01159277,97156.0,97146.0,0.01]
[1736849103143,0.3608,97167.0,97146.0,0.11277102]
[1736849103335,0.3608,97167.0,97158.0,0.05147]
[1736849103540,0.3608,97167.0,97164.0,0.051466]
[1736849103743,0.051466,97166.0,97164.0,0.051466]
[1736849104146,0.051466,97165.0,97164.0,0.051466]
[1736849105347,0.37201042,97167.0,97159.0,0.64716]
[1736849105644,0.051467,97165.0,97159.0,0.646]
[1736849105846,0.07,97169.0,97168.0,0.051464]
[1736849106238,0.121464,97169.0,97168.0,0.051464]
[1736849108139,0.122464,97169.0,97168.0,0.053464]
[1736849109446,0.122464,97169.0,97168.0,0.052464]
[1736849109950,0.122464,97169.0,97168.0,0.001]
[1736849111051,0.121464,97169.0,97168.0,0.005]
[1736849111438,0.121464,97169.0,97168.0,0.001]
[1736849112050,0.051469,97160.0,97159.0,0.646]
[1736849112647,0.051476,97146.0,97142.0,0.00116]
[1736849112844,0.05148,97139.0,97138.0,0.2126]
[1736849113245,0.41228,97139.0,97138.0,0.2126]
[1736849113445,0.05148,97138.0,97137.0,0.00154391]
[1736849115047,0.05248,97138.0,97137.0,0.00154391]
[1736849115555,0.05348,97138.0,97137.0,0.00154391]
[1736849117944,0.05248,97138.0,97137.0,0.00154391]
[1736849118359,0.05348,97138.0,97137.0,0.00154391]
[1736849124257,0.051491,97118.0,97106.0,0.3608]
[1736849124457,0.051491,97118.0,97117.0,0.00154454]
[1736849125855,0.051491,97118.0,97117.0,0.00854454]
[1736849126365,0.051491,97118.0,97100.0,0.38152696]
[1736849126366,0.3608,97122.0,97100.0,0.1]
[1736849126663,0.0515,97101.0,97100.0,0.1]
[1736849127962,0.0515,97101.0,97100.0,0.106]
[1736849128768,0.0525,97101.0,97100.0,0.115]
[1736849129067,0.06330626,97101.0,97100.0,0.115]
[1736849129658,0.06230626,97101.0,97100.0,0.106]
[1736849129855,0.06230626,97101.0,97100.0,0.112]
[1736849129856,0.06330626,97101.0,97100.0,0.112]
[1736849130360,0.06330626,97101.0,97100.0,0.108]
[1736849131767,0.06330626,97101.0,97077.0,0.423]
[1736849131969,0.051509,97084.0,97077.0,0.423]
[1736849132273,0.051512,97078.0,97077.0,0.423]
[1736849133582,0.052512,97078.0,97077.0,0.429]
[1736849134071,0.06354276,97078.0,97077.0,0.429]
[1736849134378,0.06354276,97078.0,97077.0,0.432]
[1736849134572,0.06354276,97078.0,97077.0,0.009]
[1736849134875,0.42434276,97078.0,97077.0,0.009]
[1736849135775,0.42334276,97078.0,97077.0,0.007]
[1736849136474,0.42334276,97078.0,97077.0,0.006]
[1736849136864,0.06254276,97078.0,97077.0,0.006]
[1736849139078,0.3608,97090.0,97078.0,0.051512]
[1736849139275,0.051511,97081.0,97080.0,0.10177102]
[1736849139577,0.051511,97081.0,97080.0,0.07]
[1736849139872,0.3608,97090.0,97079.0,0.3556]
[1736849139873,0.051511,97080.0,97079.0,0.3556]
[1736849140274,1.0216,97080.0,97063.0,0.0012]
[1736849140478,0.051533,97040.0,97034.0,0.00116]
[1736849140668,0.3608,97041.0,97033.0,0.6507]
[1736849140868,0.3608,97066.0,97035.0,0.3608]
[1736849141068,0.3608,97066.0,97050.0,0.10177102]
[1736849141274,0.3608,97066.0,97056.0,0.10177102]
[1736849141470,0.051515,97073.0,97062.0,0.3608]
[1736849141779,0.01118343,97079.0,97070.0,0.3608]
[1736849141983,0.3608,97089.0,97070.0,0.3608]
[1736849142172,0.051511,97081.0,97079.0,0.10177102]
[1736849142375,0.051511,97081.0,97080.0,0.4453]
[1736849143073,0.3608,97089.0,97080.0,0.4453]
[1736849143275,0.051509,97085.0,97081.0,0.2181]
[1736849144079,0.3608,97089.0,97082.0,0.05151]
[1736849144579,0.3608,97089.0,97083.0,0.051509]
[1736849144775,0.3618,97089.0,97083.0,0.051509]
[1736849145080,0.051508,97086.0,97083.0,0.051509]
[1736849145282,0.051509,97085.0,97083.0,0.051509]
[1736849146589,0.3628,97089.0,97088.0,0.051507]
[1736849146967,0.3628,97089.0,97083.0,0.002]
[1736849147169,0.3628,97089.0,97081.0,0.2181]
[1736849147379,0.051509,97084.0,97083.0,0.052509]
[1736849147570,0.051509,97084.0,97083.0,0.001]
[1736849148185,0.051509,97084.0,97083.0,0.004]
[1736849148784,0.051509,97084.0,97083.0,0.005]
[1736849150188,0.3608,97089.0,97088.0,0.051507]
[1736849152282,0.051507,97087.0,97083.0,0.006]
[1736849152979,0.051507,97087.0,97083.0,0.003]
[1736849153182,0.051507,97087.0,97084.0,0.051509]
[1736849153574,0.3608,97089.0,97080.0,0.226]
[1736849153780,0.3608,97081.0,97080.0,0.226]
[1736849154383,0.3608,97081.0,97068.0,0.3608]
[1736849154581,0.051519,97065.0,97064.0,0.2213]
[1736849155780,0.052519,97065.0,97064.0,0.2263]
[1736849156374,0.052519,97065.0,97063.0,0.432]
[1736849156375,0.051528,97049.0,97048.0,8e-08]
[1736849156579,0.773128,97049.0,97048.0,8e-08]
[1736849158288,0.418328,97049.0,97048.0,8e-08]
[1736849158684,0.416328,97049.0,97048.0,8e-08]
[1736849159182,0.413328,97049.0,97048.0,8e-08]
[1736849159387,0.418328,97049.0,97048.0,8e-08]
[1736849159585,0.417328,97049.0,97048.0,8e-08]
[1736849159780,0.418328,97049.0,97048.0,8e-08]
[1736849160489,0.419328,97049.0,97048.0,8e-08]
[1736849161488,0.418328,97049.0,97048.0,8e-08]
[1736849162085,0.421328,97049.0,97048.0,8e-08]
[1736849165796,0.419328,97049.0,97048.0,8e-08]
[1736849165997,0.051542,97022.0,97016.0,0.051545]
[1736849166293,0.051542,97022.0,97017.0,0.051544]
[1736849166691,0.051543,97021.0,97017.0,0.051544]
[1736849166887,0.051544,97018.0,97017.0,0.051544]
[1736849167094,0.051541,97024.0,97016.0,0.07]
[1736849167300,0.051541,97024.0,97021.0,0.002]
[1736849167490,0.051541,97023.0,97021.0,0.053542]
[1736849168090,0.051541,97023.0,97021.0,0.002]
[1736849168289,0.051542,97022.0,97021.0,0.002]
[1736849168895,0.051542,97022.0,97012.0,0.704547]
[1736849169096,0.051547,97013.0,97012.0,0.704547]
[1736849170192,0.051547,97013.0,97012.0,0.653]
[1736849170399,0.051547,97013.0,97012.0,0.2261]
[1736849171698,0.052547,97013.0,97012.0,0.2261]
[1736849171999,0.051542,97021.0,97012.0,0.2261]
[1736849172199,0.051547,97013.0,97012.0,0.263]
[1736849172586,0.051547,97013.0,97012.0,0.0369]
[1736849173094,0.051547,97013.0,97012.0,0.0409]
[1736849175200,0.052547,97013.0,97012.0,0.0409]
[1736849175401,0.06350321,97013.0,97012.0,0.0369]
[1736849175594,0.06350321,97013.0,97000.0,0.1]
[1736849175595,0.051553,97001.0,97000.0,0.1]
[1736849175796,0.412353,97001.0,97000.0,0.1]
[1736849176408,0.051559,96990.0,96989.0,0.00154598]
[1736849176699,0.412359,96990.0,96989.0,0.00154598]
[1736849177906,0.413359,96990.0,96989.0,0.00254598]
[1736849178303,0.3618,96990.0,96989.0,0.00254598]
[1736849178604,0.001,96990.0,96989.0,0.05410498]
[1736849179196,0.01172219,96990.0,96989.0,0.05410498]
[1736849179499,0.01172219,96990.0,96989.0,0.05710498]
[1736849179701,0.01172219,96990.0,96989.0,0.00554598]
[1736849179895,0.01172219,96990.0,96989.0,0.05710498]
[1736849180298,0.3608,96993.0,96989.0,0.05710498]
[1736849180509,0.3608,96993.0,96992.0,0.051558]
[1736849181097,0.3608,96993.0,96992.0,0.121558]
[1736849181405,0.3618,96993.0,96992.0,0.051558]
[1736849182006,0.412357,96993.0,96992.0,0.051558]
[1736849182307,0.413357,96993.0,96992.0,0.001]
[1736849183409,0.3618,96993.0,96992.0,0.055558]
[1736849184800,0.413357,96993.0,96992.0,0.055558]
[1736849185105,0.413357,96993.0,96992.0,0.004]
[1736849185805,0.00154694,97010.0,96992.0,0.004]
[1736849186011,0.00154694,97010.0,97006.0,0.3608]
[1736849186207,0.05155,97007.0,97006.0,0.3608]
[1736849186509,0.00154694,97010.0,97008.0,0.051549]
[1736849186705,0.00154694,97010.0,97006.0,0.3608]
[1736849186904,0.05155,97007.0,97006.0,0.3608]
[1736849187907,0.05155,97007.0,97006.0,0.41235]
[1736849188103,0.00154694,97010.0,97008.0,0.053549]
[1736849188306,0.00154694,97010.0,97009.0,0.051549]
[1736849188504,0.05309494,97010.0,97009.0,0.051549]
[1736849188703,0.00154694,97010.0,97009.0,0.051549]
[1736849189604,0.64152001,97037.0,97009.0,0.051549]
[1736849189814,0.051535,97036.0,97031.0,0.051537]
[1736849190000,0.10215823,97050.0,97031.0,0.051537]
[1736849190206,0.051537,97033.0,97031.0,0.051537]
[1736849190603,0.051542,97022.0,97021.0,0.4455]
[1736849191105,0.10215823,97031.0,97019.0,0.3608]
[1736849191405,0.3608,97035.0,97015.0,0.051545]
[1736849191406,0.051544,97018.0,97015.0,0.051545]
[1736849191605,0.3608,97035.0,97010.0,0.10215823]
[1736849191606,0.051541,97023.0,97010.0,0.10215823]
[1736849191811,0.054536,97033.0,97015.0,0.3608]
[1736849192001,0.003,97033.0,97015.0,0.3608]
[1736849192200,0.051545,97016.0,97015.0,0.3608]
[1736849193418,0.051545,97016.0,97015.0,0.412346]
[1736849193603,0.051537,97032.0,97019.0,0.051543]
[1736849193807,0.051537,97032.0,97020.0,0.10215823]